Workbook

Sheet PISO
Z2: PG 1 / 2 | BB2: PG 2 / 2
E3: FOLHA DE DADOS: ENSACADOR DE BIG BAG - PISO | AG3: FOLHA DE DADOS: ENSACADOR DE BIG BAG - PISO
AD4: DIMENSÕES DO BIG BAG
C5: Proposta Comercial nº: | O5: Revisão: | T5: Data:
C8: Informações do CLIENTE
C9: Empresa:
C10: Unidade: | O10: CNPJ:
C11: Divisão: | O11: Setor
C12: Endereço: | X12: CEP:
C13: Bairro: | O13: Cidade: | X13: UF:
C14: Contato:
C15: Setor | O15: Cargo:
C16: e-mail: | O16: Telefone: | U16: Celular:
C19: PROCESSO | K19: Exemplo | P19: Real
C20: Produto | K20: AÇÚCAR
C21: Origem do material | K21: SILO
C22: Transporte do material para o Ensacador | K22: GRAVIDADE | P22: SELECIONE ▼
C23: Retirada do bag (carro manual/paleteira/outros) | K23: PALETEIRA
C24: Área de ensacamento (segura/classificada) | K24: SEGURA | P24: SELECIONE ▼
C25: Intertravamento com CLP externo | K25: NÃO | P25: SELECIONE ▼
C26: Temperatura do produto (ºC) | K26: 30 | U26: Preencher os campos numéricos somente com valores
C27: Temperatura ambiente (ºC) | K27: 25
C28: Densidade do produto (g/cm3) | K28: 0.95
C29: Peso Líquido do Big Bag cheio (kg) | K29: 2000
C30: J Distância Piso-Silo (mm) | K30: 2500
C33: BIG BAG | K33: Exemplo | P33: Real
C34: Tipo de Big Bag | K34: RETANGULAR | P34: SELECIONE ▼
C35: A Diâmetro ou largura big bag (mm) | K35: 1000
C36: B Altura do big bag (mm) | K36: 1000
C37: C Altura da boca do big bag (mm) | K37: 400
C38: D Diâmetro da boca do big bag (mm) | K38: 350
C39: E Comprimento da alça (mm) | K39: 250
C40: F Distância entre alças (mm) | K40: 500 | P40: N/A
C43: PALLET | K43: Exemplo | P43: Real
C44: G Comprimento do pallet (mm) | K44: 1000
C45: H Largura do pallet (mm) | K45: 1000
C46: I Altura do pallet (mm) | K46: 150
C49: ENSACADOR DE BIG BAG | K49: Exemplo | P49: Real
C50: Ensacador em Aço Carbono ou Inox? | K50: AÇO INOX 304 | P50: SELECIONE ▼
C51: Tipo de Válvula de Bloqueio | K51: GUILHOTINA ALIMENTÍCIA | P51: SELECIONE ▼
C52: Material do Diafragma da Válvula | K52: SINTERIZADO | P52: SELECIONE ▼
C53: Diâmetro do duto de aliementação (mm) | K53: 6" (152,4 mm) | P53: SELECIONE ▼
C54: Fixação do bocal do Big Bag | K54: INFLÁVEL | P54: SELECIONE ▼
C55: Plataforma de Pesagem | K55: COM TAMPO LISO | P55: SELECIONE ▼
C56: Fixação da Plataforma | K56: CONTRAMARCO | P56: SELECIONE ▼
C57: Tipo de Automação | K57: PAINEL IHM + TRANSMISSOR | P57: SELECIONE ▼
C58: Tipo de Comunicação | K58: DeviceNet + 4-20mA | P58: SELECIONE ▼
C59: Fixação do painel | K59: COM PEDESTAL | P59: SELECIONE ▼
C60: Comprimento Cabo Ensacador - Painel IHM (m) | K60: 50 m | P60: SELECIONE ▼
C61: Sistema para Pré Insuflamento do Big Bag | K61: SIM | P61: SELECIONE ▼ | AE61: K= | AF61: =IF(OR(PISO_MEDIDA_B="",PISO_MEDIDA_E="",PISO_MEDIDA_I="",LEFT(PISO_SELEÇÃO_FIX_PLATAFORMA,9)="SELECIONE",PISO_SELEÇÃO_VALVULA="",PISO_SELEÇÃO_PLATAFORMA=""),0, IF(AND(PISO_SELEÇÃO_PLATAFORMA="COM TRILHO",LEFT(PISO_SELEÇÃO_VALVULA,4)="GUIL",PISO_SELEÇÃO_FIX_PLATAFORMA="COPO POSICIONADOR"),SUM(PISO_MEDIDA_B+PISO_MEDIDA_E+PISO_MEDIDA_I+TRIL_COPO_GUIL), IF(AND(PISO_SELEÇÃO_PLATAFORMA="COM TRILHO",LEFT(PISO_SELEÇÃO_VALVULA,4)="BORB",PISO_SELEÇÃO_FIX_PLATAFORMA="COPO POSICIONADOR"),SUM(PISO_MEDIDA_B+PISO_MEDIDA_E+PISO_MEDIDA_I+TRIL_COPO_BORB), IF(AND(PISO_SELEÇÃO_PLATAFORMA="COM TRILHO",LEFT(PISO_SELEÇÃO_VALVULA,3)="SEM",PISO_SELEÇÃO_FIX_PLATAFORMA="COPO POSICIONADOR"),SUM(PISO_MEDIDA_B+PISO_MEDIDA_E+PISO_MEDIDA_I+TRIL_COPO_SEM), IF(AND(PISO_SELEÇÃO_PLATAFORMA="COM TRILHO",LEFT(PISO_SELEÇÃO_VALVULA,4)="GUIL",PISO_SELEÇÃO_FIX_PLATAFORMA="CONTRAMARCO"),SUM(PISO_MEDIDA_B+PISO_MEDIDA_E+PISO_MEDIDA_I+TRIL_CONT_GUIL), IF(AND(PISO_SELEÇÃO_PLATAFORMA="COM TRILHO",LEFT(PISO_SELEÇÃO_VALVULA,4)="BORB",PISO_SELEÇÃO_FIX_PLATAFORMA="CONTRAMARCO"),SUM(PISO_MEDIDA_B+PISO_MEDIDA_E+PISO_MEDIDA_I+TRIL_CONT_BORB), IF(AND(PISO_SELEÇÃO_PLATAFORMA="COM TRILHO",LEFT(PISO_SELEÇÃO_VALVULA,3)="SEM",PISO_SELEÇÃO_FIX_PLATAFORMA="CONTRAMARCO"),SUM(PISO_MEDIDA_B+PISO_MEDIDA_E+PISO_MEDIDA_I+TRIL_CONT_SEM), IF(AND(PISO_SELEÇÃO_PLATAFORMA="COM TAMPO LISO",LEFT(PISO_SELEÇÃO_VALVULA,4)="GUIL",PISO_SELEÇÃO_FIX_PLATAFORMA="COPO POSICIONADOR"),SUM(PISO_MEDIDA_B+PISO_MEDIDA_E+PISO_MEDIDA_I+LIS_COPO_GUIL), IF(AND(PISO_SELEÇÃO_PLATAFORMA="COM TAMPO LISO",LEFT(PISO_SELEÇÃO_VALVULA,4)="BORB",PISO_SELEÇÃO_FIX_PLATAFORMA="COPO POSICIONADOR"),SUM(PISO_MEDIDA_B+PISO_MEDIDA_E+PISO_MEDIDA_I+LIS_COPO_BORB), IF(AND(PISO_SELEÇÃO_PLATAFORMA="COM TAMPO LISO",LEFT(PISO_SELEÇÃO_VALVULA,3)="SEM",PISO_SELEÇÃO_FIX_PLATAFORMA="COPO POSICIONADOR"),SUM(PISO_MEDIDA_B+PISO_MEDIDA_E+PISO_MEDIDA_I+LIS_COPO_SEM), IF(AND(PISO_SELEÇÃO_PLATAFORMA="COM TAMPO LISO",LEFT(PISO_SELEÇÃO_VALVULA,4)="GUIL",PISO_SELEÇÃO_FIX_PLATAFORMA="CONTRAMARCO"),SUM(PISO_MEDIDA_B+PISO_MEDIDA_E+PISO_MEDIDA_I+LIS_CONT_GUIL), IF(AND(PISO_SELEÇÃO_PLATAFORMA="COM TAMPO LISO",LEFT(PISO_SELEÇÃO_VALVULA,4)="BORB",PISO_SELEÇÃO_FIX_PLATAFORMA="CONTRAMARCO"),SUM(PISO_MEDIDA_B+PISO_MEDIDA_E+PISO_MEDIDA_I+LIS_CONT_BORB), IF(AND(PISO_SELEÇÃO_PLATAFORMA="COM TAMPO LISO",LEFT(PISO_SELEÇÃO_VALVULA,3)="SEM",PISO_SELEÇÃO_FIX_PLATAFORMA="CONTRAMARCO"),SUM(PISO_MEDIDA_B+PISO_MEDIDA_E+PISO_MEDIDA_I+LIS_CONT_SEM), IF(AND(PISO_SELEÇÃO_PLATAFORMA="COM MESA DE ROLETES",LEFT(PISO_SELEÇÃO_VALVULA,4)="GUIL",PISO_SELEÇÃO_FIX_PLATAFORMA="COPO POSICIONADOR"),SUM(PISO_MEDIDA_B+PISO_MEDIDA_E+PISO_MEDIDA_I+ROL_COPO_GUIL), IF(AND(PISO_SELEÇÃO_PLATAFORMA="COM MESA DE ROLETES",LEFT(PISO_SELEÇÃO_VALVULA,4)="BORB",PISO_SELEÇÃO_FIX_PLATAFORMA="COPO POSICIONADOR"),SUM(PISO_MEDIDA_B+PISO_MEDIDA_E+PISO_MEDIDA_I+ROL_COPO_BORB), IF(AND(PISO_SELEÇÃO_PLATAFORMA="COM MESA DE ROLETES",LEFT(PISO_SELEÇÃO_VALVULA,3)="SEM",PISO_SELEÇÃO_FIX_PLATAFORMA="COPO POSICIONADOR"),SUM(PISO_MEDIDA_B+PISO_MEDIDA_E+PISO_MEDIDA_I+ROL_COPO_SEM), IF(AND(PISO_SELEÇÃO_PLATAFORMA="COM MESA DE ROLETES",LEFT(PISO_SELEÇÃO_VALVULA,4)="GUIL",PISO_SELEÇÃO_FIX_PLATAFORMA="CONTRAMARCO"),SUM(PISO_MEDIDA_B+PISO_MEDIDA_E+PISO_MEDIDA_I+ROL_CONT_GUIL), IF(AND(PISO_SELEÇÃO_PLATAFORMA="COM MESA DE ROLETES",LEFT(PISO_SELEÇÃO_VALVULA,4)="BORB",PISO_SELEÇÃO_FIX_PLATAFORMA="CONTRAMARCO"),SUM(PISO_MEDIDA_B+PISO_MEDIDA_E+PISO_MEDIDA_I+ROL_CONT_BORB), IF(AND(PISO_SELEÇÃO_PLATAFORMA="COM MESA DE ROLETES",LEFT(PISO_SELEÇÃO_VALVULA,3)="SEM",PISO_SELEÇÃO_FIX_PLATAFORMA="CONTRAMARCO"),SUM(PISO_MEDIDA_B+PISO_MEDIDA_E+PISO_MEDIDA_I+ROL_CONT_SEM), 0))))))))))))))))))) -> 0
K62: =IF(PISO_SELEÇÃO_AREA="CLASSIFICADA","CLASSIFICADA_PISO", IF(PISO_SELEÇÃO_AREA="SEGURA","SEGURA_PISO","")) ->  | P62: =IF(PISO_SELEÇÃO_AUTOMAÇÃO="Indicador Linha 3000","SEGURA_INDICADOR_PISO", IF(PISO_SELEÇÃO_AUTOMAÇÃO="PAINEL IHM + TRANSMISSOR","TAB_PISO_FIELDBUS[DESCRIÇÃO]", IF(PISO_SELEÇÃO_AUTOMAÇÃO="CAIXA Exd COM DISPLAY","SEGURA_INDICADOR_PISO", IF(PISO_SELEÇÃO_AUTOMAÇÃO="CAIXA Exd + PAINEL IHM","TAB_PISO_FIELDBUS[DESCRIÇÃO]", """")))) -> "
C64: Laudo Técnico NR-10 e NR-12 | K64: SIM | P64: SELECIONE ▼
C66: CÓDIGO DE ENCOMENDA | O66: =IFERROR(IF(OR(PISO_SELEÇÃO_MATERIAL_CONSTRUÇÃO="",PISO_SELEÇÃO_BOCAL="",PISO_SELEÇÃO_PLATAFORMA="",PISO_SELEÇÃO_FIX_PAINEL=""),"", _xlfn.CONCAT("ENS", _xlfn.XLOOKUP(PISO_SELEÇÃO_MATERIAL_CONSTRUÇÃO,TAB_PISO_MATERIAL[DESCRIÇÃO],TAB_PISO_MATERIAL[CÓDIGO]), _xlfn.XLOOKUP(PISO_SELEÇÃO_VALVULA,TAB_geral_VALV[DESCRIÇÃO],TAB_geral_VALV[CÓDIGO]), _xlfn.XLOOKUP(PISO_SELEÇÃO_DUTO,TAB_PISO_DUTO[DESCRIÇÃO],TAB_PISO_DUTO[CÓDIGO]), _xlfn.XLOOKUP(PISO_SELEÇÃO_BOCAL,TAB_PISO_FIXADOR[DESCRIÇÃO],TAB_PISO_FIXADOR[CÓDIGO]), _xlfn.XLOOKUP(PISO_SELEÇÃO_PLATAFORMA,TAB_PISO_PLAT[DESCRIÇÃO],TAB_PISO_PLAT[CÓDIGO]), _xlfn.XLOOKUP(PISO_SELEÇÃO_FIX_PLATAFORMA,TAB_PISO_FIX_PLAT[DESCRIÇÃO],TAB_PISO_FIX_PLAT[CÓDIGO]), _xlfn.XLOOKUP(PISO_SELEÇÃO_FIX_PAINEL,TAB_PISO_FIX_PAINEL[DESCRIÇÃO],TAB_PISO_FIX_PAINEL[CÓDIGO]), _xlfn.XLOOKUP(PISO_SELEÇÃO_CABO,TAB_GERAL_CABO[DESCRIÇÃO],TAB_GERAL_CABO[CÓDIGO]), _xlfn.XLOOKUP(PISO_SELEÇÃO_AREA,TAB_GERAL_AREA[DESCRIÇÃO],TAB_GERAL_AREA[CÓDIGO]), _xlfn.XLOOKUP(PISO_SELEÇÃO_LAUDO,TAB_GERAL_RESPOSTA[DESCRIÇÃO],TAB_GERAL_RESPOSTA[CÓDIGO]), _xlfn.XLOOKUP(PISO_SELEÇÃO_INSU,TAB_GERAL_RESPOSTA[DESCRIÇÃO],TAB_GERAL_RESPOSTA[CÓDIGO]))),"PREENCHA TODOS OS CAMPOS") -> PREENCHA TODOS OS CAMPOS | AD66: INFORMAÇÕES IMPORTANTES
B68: Comentários:
C82: Alfa Instrumentos R. Cel Mário de Azevedo, 138 - São Paulo-SP - Brasil - CEP 02710-020 F: (11) 3952-2299 - SAC: 0800-772-2910 | AE82: Alfa Instrumentos R. Cel Mário de Azevedo, 138 - São Paulo-SP - Brasil - CEP 02710-020 F: (11) 3952-2299 - SAC: 0800-772-2910
C83: vendas@alfainstrumentos.com.br - www.alfainstrumentos.com.br | AE83: vendas@alfainstrumentos.com.br - www.alfainstrumentos.com.br
Z84: 0026PR02 | BB84: =Z84 -> 0026PR02

Sheet SUSPENSO (hidden)
Z2: PG 1 / 2 | BB2: PG 2 / 2
E3: FOLHA DE DADOS: ENSACADOR DE BIG BAG - SUSPENSO | AG3: FOLHA DE DADOS: ENSACADOR DE BIG BAG - SUSPENSO
AD4: DIMENSÕES DO BIG BAG
C5: Proposta Comercial nº: | O5: Revisão: | T5: Data:
C8: Informações do CLIENTE
C9: Empresa:
C10: Unidade: | O10: CNPJ:
C11: Divisão: | O11: Setor
C12: Endereço: | X12: CEP:
C13: Bairro: | O13: Cidade: | X13: UF:
C14: Contato:
C15: Setor | O15: Cargo:
C16: e-mail: | O16: Telefone: | U16: Celular:
C19: PROCESSO | K19: Exemplo | P19: Real
C20: Produto | K20: AÇÚCAR
C21: Densidade do produto (g/cm3) | K21: 0.95
C22: Peso Líquido do Big Bag cheio (kg) | K22: 1000 kg
C23: Origem do material (na alimentação) | K23: SILO
C24: Transporte do material para o Ensacador | K24: GRAVIDADE
C25: Diametro do Duto de Exaustão
C26: Temperatura do produto (ºC) | K26: 30
C27: Temperatura ambiente (ºC) | K27: 25
C28: Retirada do bag (carro manual/talha/empilh./outros) | K28: CARRO MANUAL
C29: Área de ensacamento (segura/classificada) | K29: SEGURA | P29: SEGURA
C30: Intertravamento com CLP externo* | K30: NÃO | P30: SIM
C31: J Distância Piso-Silo (mm) | K31: 1
C34: BIG BAG | K34: Exemplo | P34: Real
C35: Tipo de Big Bag | P35: CILINDRICO
C36: A Diâmetro ou largura big bag (mm) | K36: 1
C37: B Altura do big bag (mm) | K37: 1000
C38: C Altura da boca do big bag (mm) | K38: 1
C39: D Diâmetro da boca do big bag (mm) | K39: 350
C40: E Comprimento da alça (mm) | K40: 1
C41: F Distância entre alças (mm) | K41: 1
C44: PALLET | K44: Exemplo | P44: Real
C45: G Comprimento do pallet (mm) | K45: 1
C46: H Largura do pallet (mm) | K46: 1
C47: I Altura do pallet (mm) | K47: 20
C50: ENSACADOR DE BIG BAG | K50: Exemplo | P50: Real
C51: Ensacador em Aço Carbono ou Inox? | K51: AÇO INOX 304 | P51: AÇO CARBONO
C52: Tipo de Válvula de Bloqueio | K52: GUILHOTINA ALIMENTÍCIA | P52: GUILHOTINA ALIMENTÍCIA
C53: Material do Disco da Válvula | K53: SINTERIZADO | P53: INOX
C54: Diâmetro do duto de aliementação (mm) | K54: 6" (152,4 mm) | P54: 8" (203,2 mm)
C55: Tipo de Automação | K55: PAINEL COM TRANSMISSOR | P55: PAINEL COM TRANSMISSOR
C56: Tipo de Comunicação | K56: DeviceNet c/ 4-20mA | P56: DeviceNet
C57: Fixação do painel | K57: COM PEDESTAL | P57: COM PEDESTAL
C58: Comprimento Cabo Ensacador - Painel IHM (m) | K58: 50 m
C59: Sistema para Pré Insuflamento do Big Bag
C60: mesa vibratória
L61: =_xlfn.XLOOKUP(PISO_SELEÇÃO_AUTOMAÇÃO,TAB_PISO_AUTOMAÇÃO[DESCRIÇÃO],TAB_PISO_AUTOMAÇÃO[DESC. SIMP.],FALSE) -> FALSE
C63: Laudo Técnico | K63: SIM | P63: SIM
C65: CÓDIGO DE ENCOMENDA | P65: =_xlfn.CONCAT("ENS ", _xlfn.XLOOKUP(PISO_SELEÇÃO_MATERIAL_CONSTRUÇÃO,TAB_PISO_MATERIAL[DESCRIÇÃO],TAB_PISO_MATERIAL[CÓDIGO]),"-", _xlfn.XLOOKUP(PISO_SELEÇÃO_VALVULA,TAB_geral_VALV[DESCRIÇÃO],TAB_geral_VALV[CÓDIGO]),"-", _xlfn.XLOOKUP(PISO_SELEÇÃO_DUTO,TAB_PISO_DUTO[DESCRIÇÃO],TAB_PISO_DUTO[CÓDIGO]),"-", _xlfn.XLOOKUP(PISO_SELEÇÃO_BOCAL,TAB_PISO_FIXADOR[DESCRIÇÃO],TAB_PISO_FIXADOR[CÓDIGO]),"-", _xlfn.XLOOKUP(PISO_SELEÇÃO_PLATAFORMA,TAB_PISO_PLAT[DESCRIÇÃO],TAB_PISO_PLAT[CÓDIGO]),"-", _xlfn.XLOOKUP(_xlfn.SINGLE(PISO_SELEÇÃO_FIX_PLATAFORMA),TAB_PISO_FIX_PLAT[DESCRIÇÃO],TAB_PISO_FIX_PLAT[CÓDIGO]),"-", _xlfn.XLOOKUP(PISO_SELEÇÃO_FIX_PAINEL,TAB_PISO_FIX_PAINEL[DESCRIÇÃO],TAB_PISO_FIX_PAINEL[CÓDIGO]),"-", _xlfn.XLOOKUP(PISO_SELEÇÃO_AREA,TAB_GERAL_AREA[DESCRIÇÃO],TAB_GERAL_AREA[CÓDIGO])) -> 
AE66: INFORMAÇÕES
B67: Comentários:
C81: Alfa Instrumentos R. Cel Mário de Azevedo, 138 - São Paulo-SP - Brasil - CEP 02710-020 F: (11) 3952-2299 - SAC: 0800-772-2910 | AE81: Alfa Instrumentos R. Cel Mário de Azevedo, 138 - São Paulo-SP - Brasil - CEP 02710-020 F: (11) 3952-2299 - SAC: 0800-772-2910
C82: vendas@alfainstrumentos.com.br - www.alfainstrumentos.com.br | AE82: vendas@alfainstrumentos.com.br - www.alfainstrumentos.com.br
Z83: =PISO!Z84 -> 0026PR02 | BB83: =Z83 -> 0026PR02

Sheet DADOS (hidden)
C3: GERAL
C5: QUANTIDADE DE CABO | G5: ESPECIFICAÇÃO DA VÁLVULA
C6: DESCRIÇÃO | D6: CÓDIGO | E6: DESC. SIMP. | G6: DESCRIÇÃO | H6: CÓDIGO | I6: DESC. SIMP.
C7: SEM CABO | D7: 0 | E7: 000 | G7: BORBOLETA ALIMENTÍCIA | H7: 1 | I7: BO
C8: 10 m | D8: 1 | E8: 010 | G8: BORBOLETA USO GERAL | H8: 2 | I8: BG
C9: 20 m | D9: 2 | E9: 020 | G9: GUILHOTINA ALIMENTÍCIA | H9: 3 | I9: GO
C10: 50 m | D10: 3 | E10: 050 | G10: GUILHOTINA USO GERAL | H10: 4 | I10: GG
C11: 100 m | D11: 4 | E11: 100 | G11: SEM VÁLVULA | H11: 0 | I11: SV
C12: 200 m | D12: 5 | E12: 200
C13: 300 m | D13: 6 | E13: 300 | G13: ÁREA DE ENSACAMENTO
G14: DESCRIÇÃO | H14: CÓDIGO | I14: DESC. SIMP.
C15: FIXAÇÃO DO PAINEL | G15: SEGURA | H15: S
C16: DESCRIÇÃO | D16: CÓDIGO | E16: DESC. SIMP. | G16: CLASSIFICADA | H16: C
C17: COM PEDESTAL | D17: C | E17: C/PD
C18: SEM PEDESTAL | D18: S | E18: S/PD | G18: RESPOSTA
G19: DESCRIÇÃO | H19: CÓDIGO | I19: DESC. SIMP.
C20: TIPO DE AUTOMAÇÃO | G20: SIM | H20: S
C21: DESCRIÇÃO | D21: CÓDIGO | E21: DESC. SIMP. | G21: NÃO | H21: N
C22: PAINEL COM TRANSMISSOR | D22: 0
C23: SOMENTE TRANSMISSOR | D23: 1 | G23: TIPO DE COMUNICAÇÃO
C24: INDICADOR 3102CP | D24: 2 | G24: DESCRIÇÃO | H24: CÓDIGO | I24: DESC. SIMP.
C25: INDICADOR 3102CS | D25: 3 | G25: DeviceNet | H25: 0
C26: INDICADOR 3103CP | D26: 4 | G26: DeviceNet + 4-20mA | H26: 1
C27: INDICADOR 3103CS | D27: 5 | G27: Ethernet TCP/IP | H27: 2
C28: INDICADOR 3104CP | D28: 6 | G28: Ethernet TCP/IP + 4-20mA | H28: 3
C29: INDICADOR 3104CS | D29: 7 | G29: EtherNet/IP | H29: 4
C30: INDICADOR 3107CP | D30: 8 | G30: EtherNet/IP + 4-20mA | H30: 5
C31: INDICADOR 3107CS | D31: 9 | G31: ModBus RTU | H31: 6
G32: ModBus RTU + 4-20mA | H32: 7
C33: TIPO DE BIG BAG | G33: ModBus TCP/IP | H33: 8
C34: DESCRIÇÃO | D34: CÓDIGO | E34: REGRAS | G34: ModBus TCP/IP + 4-20mA | H34: 9
C35: CILINDRICO | G35: Profibus | H35: A
C36: RETANGULAR | G36: Profibus + 4-20mA | H36: B
G37: Profinet | H37: C
G38: Profinet + 4-20mA | H38: D
G39: Sem comunicação | H39: E
G40: Somente 4-20mA | H40: F
G42: DESCRIÇÃO | H42: CÓDIGO | I42: DESC. SIMP.
G43: INOX
G44: SINTERIZADO
C49: PISO
C51: DADOS | G51: REGRAS
C53: MATERIAL DE CONSTRUÇÃO
C54: DESCRIÇÃO | D54: CÓDIGO | E54: DESC. SIMP. | G54: CLASSIFICADA
C55: AÇO CARBONO | D55: 1 | G55: CAIXA Exd COM DISPLAY
C56: AÇO INOX 304 | D56: 2 | G56: CAIXA Exd + PAINEL IHM
C58: FIXAÇÃO DO BOCAL | G58: SEGURA
C59: DESCRIÇÃO | D59: CÓDIGO | E59: DESC. SIMP. | G59: PAINEL IHM + TRANSMISSOR
C60: GRAMPO MECÂNICO | D60: M | G60: INDICADOR LINHA 3000
C61: INFLÁVEL | D61: I
C62: SEM FIXADOR | D62: O | G62: SEGURA+INDICADOR
G63: ModBus RTU
C64: DIÂMETRO DUTO DE ALIEMENTAÇÃO | G64: ModBus TCP/IP
C65: DESCRIÇÃO | D65: CÓDIGO | E65: DESC. SIMP. | G65: Profibus
C66: 6" (152,4 mm) | D66: 1 | E66: 06 | G66: DeviceNet
C67: 8" (203,2 mm) | D67: 2 | E67: 08 | G67: EtherNet/IP
C68: 10" (254 mm) | D68: 3 | E68: 10 | G68: Ethernet TCP/IP
C69: 12" (304,8 mm) | D69: 4 | E69: 12 | G69: Profinet
C71: FIXAÇÃO DA PLATAFORMA
C72: DESCRIÇÃO | D72: CÓDIGO | E72: DESC. SIMP. | G72: VALORES PARA CALCULAR MEDIDA K
C73: CONTRAMARCO | D73: C | G73: DESCRIÇÃO | H73: ONDE USA | I73: VALOR | O73: ROL+CONT+GUIL | P73: =SUM( _xlfn.XLOOKUP("COM MESA DE ROLETES",TAB_MEDIDA_K[DESCRIÇÃO],TAB_MEDIDA_K[VALOR]), _xlfn.XLOOKUP("CONTRAMARCO",TAB_MEDIDA_K[DESCRIÇÃO],TAB_MEDIDA_K[VALOR]), _xlfn.XLOOKUP("GUIL",TAB_MEDIDA_K[DESCRIÇÃO],TAB_MEDIDA_K[VALOR]),$I$83,$I$84) -> 827
C74: COPO POSICIONADOR | D74: K | G74: COM MESA DE ROLETES | I74: 85 | O74: ROL+CONT+BORB | P74: =SUM( _xlfn.XLOOKUP("COM MESA DE ROLETES",TAB_MEDIDA_K[DESCRIÇÃO],TAB_MEDIDA_K[VALOR]), _xlfn.XLOOKUP("CONTRAMARCO",TAB_MEDIDA_K[DESCRIÇÃO],TAB_MEDIDA_K[VALOR]), _xlfn.XLOOKUP("BORB",TAB_MEDIDA_K[DESCRIÇÃO],TAB_MEDIDA_K[VALOR]),$I$83,$I$84) -> 796
G75: COM TAMPO LISO | I75: 0 | O75: ROL+CONT+SEM | P75: =SUM( _xlfn.XLOOKUP("COM MESA DE ROLETES",TAB_MEDIDA_K[DESCRIÇÃO],TAB_MEDIDA_K[VALOR]), _xlfn.XLOOKUP("CONTRAMARCO",TAB_MEDIDA_K[DESCRIÇÃO],TAB_MEDIDA_K[VALOR]), _xlfn.XLOOKUP("SEM",TAB_MEDIDA_K[DESCRIÇÃO],TAB_MEDIDA_K[VALOR]),$I$83,$I$84) -> 709
G76: COM TRILHO | I76: 156 | O76: ROL+COPO+GUIL | P76: =SUM( _xlfn.XLOOKUP("COM MESA DE ROLETES",TAB_MEDIDA_K[DESCRIÇÃO],TAB_MEDIDA_K[VALOR]), _xlfn.XLOOKUP("COPO POSICIONADOR",TAB_MEDIDA_K[DESCRIÇÃO],TAB_MEDIDA_K[VALOR]), _xlfn.XLOOKUP("GUIL",TAB_MEDIDA_K[DESCRIÇÃO],TAB_MEDIDA_K[VALOR]),$I$83,$I$84) -> 944
C77: PLATAFORMA DE PESAGEM | G77: CONTRAMARCO | I77: 0 | O77: ROL+COPO+BORB | P77: =SUM( _xlfn.XLOOKUP("COM MESA DE ROLETES",TAB_MEDIDA_K[DESCRIÇÃO],TAB_MEDIDA_K[VALOR]), _xlfn.XLOOKUP("COPO POSICIONADOR",TAB_MEDIDA_K[DESCRIÇÃO],TAB_MEDIDA_K[VALOR]), _xlfn.XLOOKUP("BORB",TAB_MEDIDA_K[DESCRIÇÃO],TAB_MEDIDA_K[VALOR]),H83,H84) -> 289
C78: DESCRIÇÃO | D78: CÓDIGO | E78: DESC. SIMP. | G78: COPO POSICIONADOR | I78: 117 | O78: ROL+COPO+SEM | P78: =SUM( _xlfn.XLOOKUP("COM MESA DE ROLETES",TAB_MEDIDA_K[DESCRIÇÃO],TAB_MEDIDA_K[VALOR]), _xlfn.XLOOKUP("COPO POSICIONADOR",TAB_MEDIDA_K[DESCRIÇÃO],TAB_MEDIDA_K[VALOR]), _xlfn.XLOOKUP("SEM",TAB_MEDIDA_K[DESCRIÇÃO],TAB_MEDIDA_K[VALOR]),$I$83,$I$84) -> 826
C79: COM MESA DE ROLETES | D79: R | G79: GUIL | I79: 118 | O79: LIS+CONT+GUIL | P79: =SUM( _xlfn.XLOOKUP("COM TAMPO LISO",TAB_MEDIDA_K[DESCRIÇÃO],TAB_MEDIDA_K[VALOR]), _xlfn.XLOOKUP("CONTRAMARCO",TAB_MEDIDA_K[DESCRIÇÃO],TAB_MEDIDA_K[VALOR]), _xlfn.XLOOKUP("GUIL",TAB_MEDIDA_K[DESCRIÇÃO],TAB_MEDIDA_K[VALOR]),I83,H84) -> 600
C80: COM TAMPO LISO | D80: L | G80: BORB | I80: 87 | O80: LIS+CONT+BORB | P80: =SUM( _xlfn.XLOOKUP("COM TAMPO LISO",TAB_MEDIDA_K[DESCRIÇÃO],TAB_MEDIDA_K[VALOR]), _xlfn.XLOOKUP("CONTRAMARCO",TAB_MEDIDA_K[DESCRIÇÃO],TAB_MEDIDA_K[VALOR]), _xlfn.XLOOKUP("BORB",TAB_MEDIDA_K[DESCRIÇÃO],TAB_MEDIDA_K[VALOR]),$I$83,$I$84) -> 711
C81: COM TRILHO | D81: T | G81: SEM | I81: 0 | O81: LIS+CONT+SEM | P81: =SUM( _xlfn.XLOOKUP("COM TAMPO LISO",TAB_MEDIDA_K[DESCRIÇÃO],TAB_MEDIDA_K[VALOR]), _xlfn.XLOOKUP("CONTRAMARCO",TAB_MEDIDA_K[DESCRIÇÃO],TAB_MEDIDA_K[VALOR]), _xlfn.XLOOKUP("SEM",TAB_MEDIDA_K[DESCRIÇÃO],TAB_MEDIDA_K[VALOR]),$I$83,$I$84) -> 624
C82: COM MESA VIBRATÓRIA | D82: V
G83: DISTÂNCIA EIXO LIBERADOR ATÉ TOPO DO DUTO | I83: 482 | O83: LIS+COPO+GUIL | P83: =SUM( _xlfn.XLOOKUP("COM TAMPO LISO",TAB_MEDIDA_K[DESCRIÇÃO],TAB_MEDIDA_K[VALOR]), _xlfn.XLOOKUP("COPO POSICIONADOR",TAB_MEDIDA_K[DESCRIÇÃO],TAB_MEDIDA_K[VALOR]), _xlfn.XLOOKUP("GUIL",TAB_MEDIDA_K[DESCRIÇÃO],TAB_MEDIDA_K[VALOR]),$I$83,$I$84) -> 859
C84: ESPECIFICAÇÃO DA VÁLVULA | G84: ADAPTADOR DE MANGOTE | I84: 142 | O84: LIS+COPO+BORB | P84: =SUM( _xlfn.XLOOKUP("COM TAMPO LISO",TAB_MEDIDA_K[DESCRIÇÃO],TAB_MEDIDA_K[VALOR]), _xlfn.XLOOKUP("COPO POSICIONADOR",TAB_MEDIDA_K[DESCRIÇÃO],TAB_MEDIDA_K[VALOR]), _xlfn.XLOOKUP("BORB",TAB_MEDIDA_K[DESCRIÇÃO],TAB_MEDIDA_K[VALOR]),$I$83,$I$84) -> 828
C85: DESCRIÇÃO | D85: CÓDIGO | E85: DESC. SIMP. | O85: LIS+COPO+SEM | P85: =SUM( _xlfn.XLOOKUP("COM TAMPO LISO",TAB_MEDIDA_K[DESCRIÇÃO],TAB_MEDIDA_K[VALOR]), _xlfn.XLOOKUP("COPO POSICIONADOR",TAB_MEDIDA_K[DESCRIÇÃO],TAB_MEDIDA_K[VALOR]), _xlfn.XLOOKUP("SEM",TAB_MEDIDA_K[DESCRIÇÃO],TAB_MEDIDA_K[VALOR]),$I$83,$I$84) -> 741
C86: GUILHOTINA ALIMENTÍCIA | D86: GO | G86: TRANSPORTE DO MATERIAL | O86: TRIL+CONT+GUIL | P86: =SUM( _xlfn.XLOOKUP("COM TRILHO",TAB_MEDIDA_K[DESCRIÇÃO],TAB_MEDIDA_K[VALOR]), _xlfn.XLOOKUP("CONTRAMARCO",TAB_MEDIDA_K[DESCRIÇÃO],TAB_MEDIDA_K[VALOR]), _xlfn.XLOOKUP("GUIL",TAB_MEDIDA_K[DESCRIÇÃO],TAB_MEDIDA_K[VALOR]),$I$83,$I$84) -> 898
C87: GUILHOTINA USO GERAL | D87: GG | G87: DESCRIÇÃO | H87: CÓDIGO | I87: REGRAS | O87: TRIL+CONT+BORB | P87: =SUM( _xlfn.XLOOKUP("COM TRILHO",TAB_MEDIDA_K[DESCRIÇÃO],TAB_MEDIDA_K[VALOR]), _xlfn.XLOOKUP("CONTRAMARCO",TAB_MEDIDA_K[DESCRIÇÃO],TAB_MEDIDA_K[VALOR]), _xlfn.XLOOKUP("BORB",TAB_MEDIDA_K[DESCRIÇÃO],TAB_MEDIDA_K[VALOR]),$I$83,$I$84) -> 867
C88: BORBOLETA ALIMENTÍCIA | D88: BO | G88: GRAVIDADE | O88: TRIL+CONT+SEM | P88: =SUM( _xlfn.XLOOKUP("COM TRILHO",TAB_MEDIDA_K[DESCRIÇÃO],TAB_MEDIDA_K[VALOR]), _xlfn.XLOOKUP("CONTRAMARCO",TAB_MEDIDA_K[DESCRIÇÃO],TAB_MEDIDA_K[VALOR]), _xlfn.XLOOKUP("SEM",TAB_MEDIDA_K[DESCRIÇÃO],TAB_MEDIDA_K[VALOR]),$I$83,$I$84) -> 780
C89: BORBOLETA USO GERAL | D89: BG | G89: ROSCA TRANSPORTADORA | O89: TRIL+COPO+GUIL | P89: =SUM( _xlfn.XLOOKUP("COM TRILHO",TAB_MEDIDA_K[DESCRIÇÃO],TAB_MEDIDA_K[VALOR]), _xlfn.XLOOKUP("COPO POSICIONADOR",TAB_MEDIDA_K[DESCRIÇÃO],TAB_MEDIDA_K[VALOR]), _xlfn.XLOOKUP("GUIL",TAB_MEDIDA_K[DESCRIÇÃO],TAB_MEDIDA_K[VALOR]),$I$83,$I$84) -> 1015
C90: SEM VÁLVULA | D90: SV | G90: OUTROS | O90: TRIL+COPO+BORB | P90: =SUM( _xlfn.XLOOKUP("COM TRILHO",TAB_MEDIDA_K[DESCRIÇÃO],TAB_MEDIDA_K[VALOR]), _xlfn.XLOOKUP("COPO POSICIONADOR",TAB_MEDIDA_K[DESCRIÇÃO],TAB_MEDIDA_K[VALOR]), _xlfn.XLOOKUP("BORB",TAB_MEDIDA_K[DESCRIÇÃO],TAB_MEDIDA_K[VALOR]),$I$83,$I$84) -> 984
O91: TRIL+COPO+SEM | P91: =SUM( _xlfn.XLOOKUP("COM TRILHO",TAB_MEDIDA_K[DESCRIÇÃO],TAB_MEDIDA_K[VALOR]), _xlfn.XLOOKUP("COPO POSICIONADOR",TAB_MEDIDA_K[DESCRIÇÃO],TAB_MEDIDA_K[VALOR]), _xlfn.XLOOKUP("SEM",TAB_MEDIDA_K[DESCRIÇÃO],TAB_MEDIDA_K[VALOR]),$I$83,$I$84) -> 897
C94: SUSPENSO
C96: MATERIAL DE CONSTRUÇÃO
C97: DESCRIÇÃO | D97: CÓDIGO | E97: REGRAS
C98: AÇO CARBONO | D98: 6123
C99: AÇO INOX 304 | D99: 6124
C102: DIAMETRO DO DUTO DE EXAUSTÃO
C103: DESCRIÇÃO | D103: CÓDIGO | E103: REGRAS
C104: 1/2" (12,7 mm)
C105: 2" (50,8 mm)
C106: 2 1/2" (63,5 mm)
C107: 3" (76,2 mm)
C108: 4" (101,6 mm)
C110: ESPECIFICAÇÃO DA VÁLVULA
C111: DESCRIÇÃO | D111: CÓDIGO | E111: REGRAS
C112: GUILHOTINA ALIMENTÍCIA | D112: GO
C113: GUILHOTINA USO GERAL | D113: GG
C114: BORBOLETA ALIMENTÍCIA | D114: BO
C115: BORBOLETA USO GERAL | D115: BG
C116: SEM VÁLVULA | D116: SV
C118: DIÂMETRO DUTO DE ALIEMENTAÇÃO
C119: DESCRIÇÃO | D119: CÓDIGO | E119: REGRAS
C120: 6" (152,4 mm) | D120: 06
C121: 8" (203,2 mm) | D121: 08
C122: 10" (254 mm) | D122: 10
C123: 12" (304,8 mm) | D123: 12
